fUST/lending_fUST_20250802
["ID","MTS","AMOUNT","RATE_DAILY","PERIOD"]
[376648110,1754070641889,-500.0,0.00022087,2]
[376648112,1754070641899,-500.0,0.00022087,2]
[376648114,1754070641909,-153.46062096,0.00022087,2]
[376648116,1754070641919,-500.0,0.00022087,2]
[376648118,1754070641929,-500.0,0.00022087,2]
[376648120,1754070641943,-645.67738655,0.00022087,2]
[376648122,1754070641954,-500.0,0.00022087,2]
[376648125,1754070641964,-500.0,0.00022087,2]
[376648127,1754070641975,-500.0,0.00022087,2]
[376648129,1754070641985,-481.49,0.00022087,2]
[376648131,1754070641996,-457.90778389,0.00022087,2]
[376648133,1754070642007,-500.0,0.00022087,2]
[376648135,1754070642018,-595.17100155,0.00022087,2]
[376648137,1754070642029,-161.98975376,0.00022087,2]
[376648139,1754070642039,-460.0,0.00022088,2]
[376648142,1754070642049,-460.0,0.00022088,2]
[376648144,1754070642059,-460.0,0.00022088,2]
[376648146,1754070642069,-460.0,0.00022088,2]
[376648148,1754070642078,-460.0,0.00022088,2]
[376648150,1754070642089,-460.0,0.00022088,2]
[376648152,1754070642099,-460.0,0.00022088,2]
[376648154,1754070642109,-460.0,0.00022088,2]
[376648156,1754070642118,-460.0,0.00022088,2]
[376648158,1754070642128,-460.0,0.00022088,2]
[376648160,1754070642137,-460.0,0.00022088,2]
[376648162,1754070642147,-460.0,0.00022088,2]
[376648164,1754070642157,-460.0,0.00022088,2]
[376648166,1754070642166,-460.0,0.00022088,2]
[376648168,1754070642176,-460.0,0.00022088,2]
[376648171,1754070642186,-460.0,0.00022088,2]
[376648173,1754070642196,-460.0,0.00022088,2]
[376648175,1754070642206,-841.71,0.00022088,2]
[376648177,1754070642216,-460.0,0.00022088,2]
[376648179,1754070642225,-460.0,0.00022088,2]
[376648181,1754070642236,-460.0,0.00022088,2]
[376648183,1754070642246,-460.0,0.00022088,2]
[376648185,1754070642256,-460.0,0.00022088,2]
[376648207,1754070642267,-460.0,0.00022088,2]
[376648210,1754070642470,-457.17158375,0.00022088,2]
[376648212,1754070642479,-460.0,0.00022088,2]
[376648214,1754070642488,-460.0,0.00022088,2]
[376648216,1754070642497,-460.0,0.00022088,2]
[376648218,1754070642506,-460.0,0.00022088,2]
[376648220,1754070642516,-460.0,0.00022088,2]
[376648222,1754070642525,-460.0,0.00022088,2]
[376648224,1754070642535,-460.0,0.00022088,2]
[376648226,1754070642545,-151.0,0.00022089,7]
[376648228,1754070642555,-460.0,0.00022089,2]
[376648230,1754070642564,-460.0,0.00022089,2]
[376648232,1754070642573,-151.0,0.0002209,7]
[376648233,1754070642583,-460.0,0.0002209,2]
[376648236,1754070642593,-460.0,0.0002209,2]
[376648238,1754070642603,-460.0,0.0002209,2]
[376648240,1754070642613,-460.0,0.0002209,2]
[376648241,1754070642623,-1513.58,0.0002209,2]
[376648244,1754070642633,-460.0,0.0002209,2]
[376648245,1754070642642,-460.0,0.0002209,2]
[376648248,1754070642652,-460.0,0.0002209,2]
[376648250,1754070642661,-501.4,0.0002209,2]
[376648251,1754070642671,-141.70594276,0.00022186,7]
[376648254,1754070642684,-9.29405724,0.00022186,7]
[376648256,1754070642694,-312.70594276,0.00022186,2]
[376648338,1754070643448,-460.0,0.00021814,2]
[376648340,1754070643458,-460.0,0.00021814,2]
[376648342,1754070643467,-460.0,0.00022088,2]
[376648344,1754070643477,-147.29405724,0.00022186,2]
[376648346,1754070643486,-460.0,0.00022186,2]
[376648348,1754070643496,-673.73,0.00022188,2]
[376648350,1754070643505,-460.0,0.00022188,2]
[376648352,1754070643515,-212.373478,0.0002219,7]
[376648354,1754070643523,-460.0,0.0002219,2]
[376648356,1754070643533,-598.21,0.0002219,2]
[376648358,1754070643542,-300.587,0.00022243,2]
[376648360,1754070643552,-200.0,0.00022248,15]
[376648362,1754070643561,-200.0,0.00022248,15]
[376648364,1754070643570,-200.0,0.00022248,15]
[376648366,1754070643579,-200.0,0.00022248,15]
[376648368,1754070643592,-200.0,0.00022248,15]
[376648370,1754070643601,-653.80922598,0.00022261,2]
[376648372,1754070643611,-189.68,0.00022351,3]
[376648374,1754070643620,-569.08,0.00022351,3]
[376648376,1754070643629,-460.0,0.00022361,2]
[376648378,1754070643639,-460.0,0.00022361,2]
[376648380,1754070643648,-460.0,0.00022361,2]
[376648382,1754070643657,-1831.04,0.00022361,2]
[376648384,1754070643666,-77.41792185,0.00022361,2]
[376648549,1754070646482,-460.0,0.00021813,2]
[376648550,1754070646492,-460.0,0.00021813,2]
[376648551,1754070646501,-311.20267109,0.00022087,2]
[376648552,1754070646512,-148.79732891,0.00022087,2]
[376648553,1754070646521,-460.0,0.00022087,2]
[376648554,1754070646530,-460.0,0.00022088,2]
[376648555,1754070646539,-160.0,0.00022351,2]
[376648556,1754070646548,-382.58207815,0.00022361,2]
[376648557,1754070646557,-460.0,0.00022361,2]
[376648559,1754070646566,-460.0,0.00022361,2]
[376648561,1754070646575,-460.0,0.00022361,2]
[376648563,1754070646585,-460.0,0.00022361,2]
[376648565,1754070646594,-460.0,0.00022361,2]
[376648567,1754070646603,-460.0,0.00022361,2]
[376648568,1754070646612,-460.0,0.00022361,2]
[376648570,1754070646622,-1025.77,0.00022361,2]
[376648572,1754070646631,-460.0,0.00022361,2]
[376648575,1754070646641,-460.0,0.00022361,2]
[376648577,1754070646650,-460.0,0.00022361,2]
[376648579,1754070646659,-460.0,0.00022361,2]
[376648581,1754070646669,-460.0,0.00022361,2]
[376648582,1754070646678,-460.0,0.00022361,2]
[376648584,1754070646688,-460.0,0.00022361,2]
[376648586,1754070646697,-460.0,0.00022361,2]
[376648588,1754070646706,-222.63068286,0.00022361,2]
[376648591,1754070646718,-237.36931714,0.00022361,2]
[376648593,1754070646728,-460.0,0.00022361,2]
[376648595,1754070646737,-460.0,0.00022361,2]
[376648597,1754070646747,-703.95,0.00022361,2]
[376648599,1754070646756,-460.0,0.00022361,2]
[376648601,1754070646765,-460.0,0.00022361,2]
[376648603,1754070646775,-460.0,0.00022361,2]
[376648605,1754070646784,-460.0,0.00022361,2]
[376648607,1754070646794,-460.0,0.00022361,2]
[376648609,1754070646802,-460.0,0.00022361,2]
[376648611,1754070646812,-460.0,0.00022361,2]
[376648613,1754070646823,-460.0,0.00022361,2]
[376648615,1754070646832,-460.0,0.00022361,2]
[376648617,1754070646841,-460.0,0.00022361,2]
[376648619,1754070646850,-460.0,0.00022361,2]
[376648621,1754070646859,-460.0,0.00022361,2]
[376648622,1754070646868,-460.0,0.00022361,2]
[376648624,1754070646878,-460.0,0.00022361,2]
[376648626,1754070646886,-460.0,0.00022361,2]
[376648628,1754070646896,-460.0,0.00022361,2]
[376648630,1754070646905,-460.0,0.00022361,2]
[376648632,1754070646914,-460.0,0.00022361,2]
[376648634,1754070646923,-460.0,0.00022361,2]
[376648636,1754070646934,-1457.06,0.00022361,2]
[376648638,1754070646946,-560.28,0.00022361,2]
[376648640,1754070646955,-460.0,0.00022361,2]
[376648643,1754070646968,-460.0,0.00022361,2]
[376648644,1754070646979,-460.0,0.00022362,2]
[376648646,1754070646989,-460.0,0.00022362,2]
[376648649,1754070646998,-460.0,0.00022362,2]
[376648651,1754070647008,-460.0,0.00022362,2]
[376648652,1754070647017,-460.0,0.00022362,2]
[376648655,1754070647028,-460.0,0.00022362,2]
[376648656,1754070647037,-460.0,0.00022362,2]
[376648658,1754070647047,-460.0,0.00022362,2]
[376648660,1754070647056,-460.0,0.00022362,2]
[376648662,1754070647067,-460.0,0.00022362,2]
[376648664,1754070647076,-460.0,0.00022362,2]
[376648666,1754070647086,-460.0,0.00022362,2]
[376648668,1754070647095,-763.43,0.00022362,2]
[376648670,1754070647104,-460.0,0.00022362,2]
[376648672,1754070647114,-460.0,0.00022362,2]
[376648674,1754070647123,-460.0,0.00022362,2]
[376648676,1754070647133,-460.0,0.00022362,2]
[376648678,1754070647142,-460.0,0.00022362,2]
[376648680,1754070647152,-460.0,0.00022362,2]
[376648682,1754070647161,-460.0,0.00022362,2]
[376648684,1754070647173,-460.0,0.00022362,2]
[376648686,1754070647182,-460.0,0.00022362,2]
[376648688,1754070647191,-460.0,0.00022362,2]
[376648690,1754070647201,-460.0,0.00022362,2]
[376648692,1754070647211,-460.0,0.00022362,2]
[376648694,1754070647220,-337.87564417,0.00022362,2]
[376648697,1754070647233,-122.12435583,0.00022362,2]
[376648699,1754070647246,-460.0,0.00022362,2]
[376648701,1754070647255,-460.0,0.00022362,2]
[376648703,1754070647265,-460.0,0.00022362,2]
[376648705,1754070647274,-461.67,0.00022362,2]
[376648706,1754070647283,-460.0,0.00022362,2]
[376648708,1754070647292,-460.0,0.00022363,2]
[376648709,1754070647301,-460.0,0.00022363,2]
[376648711,1754070647310,-388.96901303,0.00022364,2]
[376648713,1754070647319,-460.0,0.00022364,2]
[376648715,1754070647328,-460.0,0.00022364,2]
[376648717,1754070647337,-1513.58,0.00022364,2]
[376648719,1754070647346,-460.0,0.00022364,2]
[376648721,1754070647355,-460.0,0.00022364,2]
[376648722,1754070647364,-460.0,0.00022364,2]
[376648724,1754070647373,-500.0,0.00022373,2]
[376648725,1754070647382,-500.0,0.00022373,2]
[376648727,1754070647391,-410.52988611,0.00022373,2]
[376648729,1754070647400,-500.0,0.00022373,2]
[376648731,1754070647409,-460.0,0.0002246,2]
[376648733,1754070647418,-460.0,0.0002246,2]
[376648735,1754070647428,-673.73,0.00022462,2]
[376648737,1754070647437,-460.0,0.00022462,2]
[376648739,1754070647446,-460.0,0.00022464,2]
[376648741,1754070647455,-598.21,0.00022464,2]
[376648743,1754070647464,-877.19620689,0.00022473,2]
[376648745,1754070647474,-1254.07,0.000225,7]
[376648747,1754070647483,-298.03,0.00022625,3]
[376648749,1754070647492,-557.73862104,0.00022635,2]
[376648751,1754070647501,-460.0,0.00022635,2]
[376648753,1754070647510,-460.0,0.00022635,2]
[376648755,1754070647519,-1831.04,0.00022635,2]
[376648757,1754070647528,-460.0,0.00022635,2]
[376648759,1754070647538,-460.0,0.00022635,2]
[376648760,1754070647547,-460.0,0.00022635,2]
[376648762,1754070647558,-48.64062644,0.00022635,2]
[376648771,1754070647633,-411.35937356,0.00022635,2]
[376648773,1754070647642,-460.0,0.00022635,2]
[376648775,1754070647651,-554.81052889,0.00022635,2]
[376648777,1754070647662,-460.0,0.00022635,2]
[376648779,1754070647672,-460.0,0.00022635,2]
[376648781,1754070647682,-1025.77,0.00022635,2]
[376648783,1754070647690,-460.0,0.00022635,2]
[376648785,1754070647699,-460.0,0.00022635,2]
[376648787,1754070647709,-460.0,0.00022635,2]
[376648789,1754070647718,-460.0,0.00022635,2]
[376648791,1754070647727,-460.0,0.00022635,2]
[376648793,1754070647737,-460.0,0.00022635,2]
[376648795,1754070647748,-517.1082629,0.00022635,2]
[376648797,1754070647758,-460.0,0.00022635,2]
[376648799,1754070647767,-460.0,0.00022635,2]
[376648801,1754070647776,-460.0,0.00022635,2]
[376648803,1754070647786,-460.0,0.00022635,2]
[376648805,1754070647796,-703.95,0.00022635,2]
[376648807,1754070647807,-460.0,0.00022635,2]
[376648810,1754070647818,-460.0,0.00022635,2]
[376648812,1754070647827,-460.0,0.00022635,2]
[376648814,1754070647836,-460.0,0.00022635,2]
[376648816,1754070647846,-460.0,0.00022635,2]
[376648818,1754070647855,-460.0,0.00022635,2]
[376648820,1754070647864,-460.0,0.00022635,2]
[376648822,1754070647873,-460.0,0.00022635,2]
[376648824,1754070647883,-460.0,0.00022635,2]
[376648825,1754070647893,-562.08176033,0.00022635,2]
[376648827,1754070647902,-460.0,0.00022635,2]
[376648829,1754070647911,-460.0,0.00022635,2]
[376648832,1754070647922,-460.0,0.00022635,2]
[376648833,1754070647931,-460.0,0.00022635,2]
[376648835,1754070647945,-460.0,0.00022635,2]
[376648837,1754070647955,-460.0,0.00022635,2]
[376648839,1754070647964,-460.0,0.00022635,2]
[376648841,1754070647974,-460.0,0.00022635,2]
[376648844,1754070647984,-460.0,0.00022635,2]
[376648846,1754070647993,-1457.06,0.00022635,2]
[376648847,1754070648002,-560.28,0.00022635,2]
[376648849,1754070648017,-460.0,0.00022635,2]
[376648851,1754070648026,-460.0,0.00022635,2]
[376648853,1754070648035,-460.0,0.00022636,2]
[376648855,1754070648046,-213.91328509,0.00022636,2]
[376648858,1754070648058,-246.08671491,0.00022636,2]
[376648860,1754070648068,-460.0,0.00022636,2]
[376648862,1754070648078,-460.0,0.00022636,2]
[376648864,1754070648087,-460.0,0.00022636,2]
[376648866,1754070648096,-460.0,0.00022636,2]
[376648867,1754070648105,-460.0,0.00022636,2]
[376648869,1754070648115,-460.0,0.00022636,2]
[376648871,1754070648124,-460.0,0.00022636,2]
[376648873,1754070648134,-460.0,0.00022636,2]
[376648875,1754070648144,-460.0,0.00022636,2]
[376648877,1754070648153,-460.0,0.00022636,2]
[376648879,1754070648164,-763.43,0.00022636,2]
[376648881,1754070648176,-460.0,0.00022636,2]
[376648883,1754070648188,-460.0,0.00022636,2]
[376648885,1754070648197,-460.0,0.00022636,2]
[376648887,1754070648207,-246.77471289,0.00022636,2]
[376648889,1754070648216,-460.0,0.00022636,2]
[376648891,1754070648226,-460.0,0.00022636,2]
[376648893,1754070648235,-460.0,0.00022636,2]
[376648895,1754070648244,-460.0,0.00022636,2]
[376648897,1754070648254,-460.0,0.00022636,2]
[376648899,1754070648264,-460.0,0.00022636,2]
[376648901,1754070648273,-542.87278143,0.00022636,2]
[376648902,1754070648282,-460.0,0.00022636,2]
[376648904,1754070648292,-60.72210674,0.00022636,2]
[376648907,1754070648304,-399.27789326,0.00022636,2]
[376648909,1754070648314,-460.0,0.00022636,2]
[376648911,1754070648325,-460.0,0.00022636,2]
[376648913,1754070648335,-460.0,0.00022636,2]
[376648915,1754070648345,-460.0,0.00022636,2]
[376648917,1754070648356,-460.0,0.00022637,2]
[376648919,1754070648365,-460.0,0.00022637,2]
[376648921,1754070648376,-460.0,0.00022638,2]
[376648923,1754070648385,-460.0,0.00022638,2]
[376648925,1754070648395,-1513.58,0.00022638,2]
[376648927,1754070648404,-460.0,0.00022638,2]
[376648929,1754070648416,-460.0,0.00022638,2]
[376648931,1754070648431,-460.0,0.00022638,2]
[376648932,1754070648441,-500.0,0.00022673,2]
[376648934,1754070648451,-460.0,0.00022734,2]
[376648936,1754070648460,-501.83867875,0.00022734,2]
[376648938,1754070648471,-673.73,0.00022736,2]
[376648940,1754070648481,-460.0,0.00022736,2]
[376648942,1754070648490,-460.0,0.00022738,2]
[376648944,1754070648499,-598.21,0.00022738,2]
[376648946,1754070648510,-260.0,0.00022836,2]
[376648948,1754070648520,-653.80922597,0.00022899,2]
[376648949,1754070648530,-210.22675994,0.000229,8]
[376648951,1754070648540,-460.0,0.00022909,2]
[376648953,1754070648550,-405.44365605,0.00022909,2]
[376648955,1754070648559,-1831.04,0.00022909,2]
[376648957,1754070648569,-460.0,0.00022909,2]
[376648959,1754070648578,-460.0,0.00022909,2]
[376648961,1754070648588,-460.0,0.00022909,2]
[376648964,1754070648603,-460.0,0.00022909,2]
[376648965,1754070648612,-460.0,0.00022909,2]
[376648967,1754070648621,-460.0,0.00022909,2]
[376648969,1754070648631,-460.0,0.00022909,2]
[376648971,1754070648640,-1025.77,0.00022909,2]
[376648973,1754070648650,-255.62192649,0.00022909,2]
[376649910,1754070701184,157.332324,0.00013699,2]
[376649958,1754071831884,-475.50176278,0.000189,2]
[376649976,1754071832396,-300.0,0.00019378,2]
[376649977,1754071832406,-1598.45441558,0.00019379,2]
[376650029,1754071837853,-17149.96597932,0.00019379,2]
[376650031,1754071837863,-556.5114077,0.00019463,2]
[376650033,1754071837872,-460.0,0.00019464,2]
[376650034,1754071837881,-460.0,0.00019464,2]
[376650036,1754071837891,-460.0,0.00019464,2]
[376650038,1754071837900,-840.28,0.00019464,2]
[376650040,1754071837909,-460.0,0.00019464,2]
[376650041,1754071837919,-460.0,0.00019464,2]
[376650043,1754071837928,-3626.5043016,0.00019464,2]
[376650045,1754071837938,-460.0,0.00019738,2]
[376650047,1754071837947,-460.0,0.00019738,2]
[376650050,1754071837957,-460.0,0.00019738,2]
[376650052,1754071837966,-460.0,0.00019738,2]
[376650054,1754071837976,-840.28,0.00019738,2]
[376650056,1754071837985,-200.0,0.00019765,15]
[376650057,1754071837994,-200.0,0.00019765,15]
[376650059,1754071838004,-200.0,0.00019765,15]
[376650061,1754071838013,-200.0,0.00019765,15]
[376650063,1754071838022,-1155.7375091,0.000199,2]
[376650065,1754071838032,-460.0,0.00020012,2]
[376650067,1754071838042,-460.0,0.00020012,2]
[376650069,1754071838057,-460.0,0.00020012,2]
[376650070,1754071838071,-460.0,0.00020012,2]
[376650071,1754071838081,-840.28,0.00020012,2]
[376650072,1754071838091,-238.208497,0.00020015,2]
[376650073,1754071838101,-223.0,0.00020042,2]
[376650074,1754071838110,-12371.3352955,0.00020043,2]
[376650075,1754071838120,-200.182231,0.00020044,2]
[376650076,1754071838130,-1155.73750896,0.00020176,2]
[376650077,1754071838140,-460.0,0.00020286,2]
[376650078,1754071838150,-460.0,0.00020286,2]
[376650079,1754071838160,-462.77224556,0.00020286,2]
[376650080,1754071838173,-460.0,0.00020286,2]
[376650081,1754071838183,-840.28,0.00020286,2]
[376650082,1754071838192,-7124.4851925,0.0002041,2]
[376650083,1754071838202,-1000.0,0.00020424,2]
[376650084,1754071838212,-1155.73750896,0.00020452,3]
[376650085,1754071838221,-293.145149,0.00020509,2]
[376650086,1754071838231,-460.0,0.0002056,2]
[376650087,1754071838240,-460.0,0.0002056,2]
[376650088,1754071838252,-460.0,0.0002056,2]
[376650089,1754071838263,-840.28,0.0002056,2]
[376650090,1754071838273,-666.0,0.00020682,2]
[376650091,1754071838282,-1155.73750896,0.00020728,3]
[376650092,1754071838292,-7673.0076919,0.00020813,2]
[376650093,1754071838302,-460.0,0.00020833,2]
[376650094,1754071838312,-460.0,0.00020833,2]
[376650095,1754071838324,-460.0,0.00020833,2]
[376650096,1754071838334,-840.28,0.00020833,2]
[376650097,1754071838344,-678.62959463,0.00020851,2]
[376650098,1754071838353,-1155.73750896,0.00021003,4]
[376650099,1754071838363,-338.70933313,0.00021107,2]
[376650100,1754071838374,-374.79,0.00021107,2]
[376650101,1754071838394,-460.0,0.00021107,2]
[376650102,1754071838405,-840.28,0.00021107,2]
[376650103,1754071838418,-420.0,0.00021114,2]
[376650104,1754071838427,-164.93078186,0.00021159,2]
[376650105,1754071838437,-1155.73750896,0.00021279,5]
[376650106,1754071838446,-460.0,0.00021381,2]
[376650107,1754071838456,-840.28,0.00021381,2]
[376650108,1754071838466,-1155.73750896,0.00021555,5]
[376650109,1754071838475,-460.0,0.00021655,2]
[376650110,1754071838485,-840.28,0.00021655,2]
[376650111,1754071838494,-164.61,0.00021702,2]
[376650112,1754071838505,-232.79677795,0.00021702,2]
[376650113,1754071838514,-200.0,0.00021703,15]
[376650114,1754071838524,-200.0,0.00021703,15]
[376650115,1754071838534,-200.0,0.00021703,15]
[376650116,1754071838543,-200.0,0.00021703,15]
[376650117,1754071838552,-320.0,0.00021703,15]
[376650118,1754071838561,-678.62959462,0.00021735,2]
[376650119,1754071838571,-436.52,0.00021801,10]
[376650120,1754071838580,-363.77,0.00021801,10]
[376650121,1754071838590,-303.14,0.00021801,10]
[376650122,1754071838599,-1578.96,0.0002181,2]
[376650123,1754071838608,-460.0,0.0002181,2]
[376650124,1754071838618,-460.0,0.0002181,2]
[376650125,1754071838628,-1018.91,0.0002181,2]
[376650126,1754071838637,-473.16263731,0.0002181,2]
[376650127,1754071838647,-460.0,0.0002181,2]
[376650128,1754071838657,-460.0,0.0002181,2]
[376650129,1754071838668,-460.0,0.0002181,2]
[376650130,1754071838677,-460.0,0.0002181,2]
[376650131,1754071838687,-460.0,0.0002181,2]
[376650132,1754071838696,-460.0,0.0002181,2]
[376650133,1754071838705,-460.0,0.0002181,2]
[376650134,1754071838715,-460.0,0.0002181,2]
[376650135,1754071838724,-460.0,0.0002181,2]
[376650136,1754071838734,-466.9,0.0002181,2]
[376650137,1754071838744,-460.0,0.0002181,2]
[376650138,1754071838754,-458.18300989,0.00021811,2]
[376650139,1754071838764,-460.0,0.00021811,2]
[376650140,1754071838774,-460.0,0.00021811,2]
[376650141,1754071838783,-460.0,0.00021811,2]
[376650142,1754071838793,-460.0,0.00021811,2]
[376650143,1754071838803,-460.0,0.00021811,2]
[376650144,1754071838813,-460.0,0.00021811,2]
[376650145,1754071838822,-460.0,0.00021811,2]
[376650146,1754071838833,-460.0,0.00021811,2]
[376650147,1754071838842,-528.34,0.00021811,2]
[376650148,1754071838852,-460.0,0.00021811,2]
[376650149,1754071838862,-460.0,0.00021811,2]
[376650150,1754071838871,-460.0,0.00021811,2]
[376650151,1754071838881,-460.0,0.00021811,2]
[376650152,1754071838891,-460.0,0.00021811,2]
[376650153,1754071838900,-460.0,0.00021811,2]
[376650154,1754071838909,-460.0,0.00021811,2]
[376650155,1754071838921,-460.0,0.00021811,2]
[376650156,1754071838930,-460.0,0.00021811,2]
[376650157,1754071838940,-460.0,0.00021811,2]
[376650158,1754071838949,-460.0,0.00021811,2]
[376650159,1754071838959,-460.0,0.00021811,2]
[376650160,1754071838969,-460.0,0.00021811,2]
[376650161,1754071838979,-460.0,0.00021811,2]
[376650162,1754071838989,-460.0,0.00021811,2]
[376650163,1754071838999,-460.0,0.00021811,2]
[376650164,1754071839008,-460.0,0.00021811,2]
[376650165,1754071839018,-460.0,0.00021811,2]
[376650166,1754071839027,-460.0,0.00021811,2]
[376650167,1754071839037,-460.0,0.00021811,2]
[376650168,1754071839047,-460.0,0.00021811,2]
[376650169,1754071839056,-465.28091439,0.00021811,2]
[376650170,1754071839066,-454.72026944,0.00021811,2]
[376650171,1754071839075,-460.0,0.00021811,2]
[376650172,1754071839085,-461.69748636,0.00021811,2]
[376650173,1754071839095,-460.0,0.00021811,2]
[376650174,1754071839104,-460.0,0.00021811,2]
[376650175,1754071839113,-460.0,0.00021811,2]
[376650176,1754071839123,-460.0,0.00021811,2]
[376650177,1754071839132,-460.0,0.00021811,2]
[376650178,1754071839146,-460.0,0.00021811,2]
[376650179,1754071839156,-1918.31,0.00021811,2]
[376650180,1754071839166,-460.0,0.00021811,2]
[376650181,1754071839175,-237.4209502,0.00021811,2]
[376650182,1754071839184,-460.0,0.00021811,2]
[376650183,1754071839193,-460.0,0.00021811,2]
[376650184,1754071839203,-460.0,0.00021811,2]
[376650186,1754071839213,-460.0,0.00021811,2]
[376650187,1754071839222,-460.0,0.00021811,2]
[376650188,1754071839232,-460.0,0.00021811,2]
[376650189,1754071839242,-460.0,0.00021811,2]
[376650190,1754071839251,-460.0,0.00021811,2]
[376650191,1754071839262,-460.0,0.00021811,2]
[376650192,1754071839272,-460.0,0.00021811,2]
[376650193,1754071839282,-460.0,0.00021811,2]
[376650194,1754071839291,-460.0,0.00021811,2]
[376650195,1754071839301,-460.0,0.00021811,2]
[376650196,1754071839311,-460.0,0.00021811,2]
[376650198,1754071839321,-460.0,0.00021811,2]
[376650199,1754071839331,-460.0,0.00021811,2]
[376650200,1754071839341,-460.0,0.00021811,2]
[376650201,1754071839351,-460.0,0.00021811,2]
[376650202,1754071839361,-460.0,0.00021811,2]
[376650203,1754071839370,-460.0,0.00021811,2]
[376650204,1754071839380,-460.0,0.00021811,2]
[376650205,1754071839389,-460.0,0.00021811,2]
[376650206,1754071839399,-460.0,0.00021811,2]
[376650207,1754071839408,-460.0,0.00021812,2]
[376650208,1754071839419,-463.6029825,0.00021812,2]
[376650209,1754071839428,-460.0,0.00021812,2]
[376650210,1754071839438,-460.0,0.00021812,2]
[376650211,1754071839447,-476.11467121,0.00021812,2]
[376650212,1754071839457,-460.0,0.00021812,2]
[376650213,1754071839467,-460.0,0.00021812,2]
[376650215,1754071839476,-460.0,0.00021812,2]
[376650217,1754071839486,-460.0,0.00021812,2]
[376650219,1754071839496,-460.0,0.00021812,2]
[376650221,1754071839505,-460.0,0.00021812,2]
[376650223,1754071839514,-460.0,0.00021812,2]
[376650225,1754071839524,-460.0,0.00021812,2]
[376650227,1754071839534,-460.0,0.00021812,2]
[376650229,1754071839543,-460.0,0.00021812,2]
[376650231,1754071839553,-460.0,0.00021812,2]
[376650233,1754071839563,-460.0,0.00021812,2]
[376650235,1754071839573,-460.0,0.00021812,2]
[376650237,1754071839583,-460.0,0.00021812,2]
[376650239,1754071839593,-460.0,0.00021812,2]
[376650241,1754071839602,-460.0,0.00021812,2]
[376650243,1754071839612,-460.0,0.00021812,2]
[376650245,1754071839622,-208.94249236,0.00021812,2]
[376650248,1754071839632,-460.0,0.00021812,2]
[376650250,1754071839642,-460.0,0.00021812,2]
[376650270,1754071839830,-460.0,0.00021812,2]
[376650272,1754071839839,-460.0,0.00021812,2]
[376650274,1754071839848,-460.0,0.00021812,2]
[376650276,1754071839857,-460.0,0.00021812,2]
[376650278,1754071839866,-460.0,0.00021812,2]
[376650280,1754071839876,-460.0,0.00021812,2]
[376650282,1754071839885,-460.0,0.00021812,2]
[376650284,1754071839894,-1132.12,0.00021812,2]
[376650286,1754071839903,-460.0,0.00021812,2]
[376650288,1754071839913,-460.0,0.00021812,2]
[376650290,1754071839926,-460.0,0.00021812,2]